fUSD/lending_fUSD_20240217
["ID","MTS","AMOUNT","RATE_DAILY","PERIOD"]
[314301535,1708164668302,-962.96,0.0005178,60]
[314301536,1708164668311,-2128.31,0.0005178,60]
[314301537,1708164668320,-500.0,0.0005178,60]
[314301538,1708164668329,-500.0,0.0005178,60]
[314301539,1708164668340,-500.0,0.0005178,60]
[314301540,1708164668349,-500.0,0.0005178,60]
[314301541,1708164668359,-500.0,0.0005178,60]
[314301542,1708164668368,-3483.63,0.0005178,60]
[314301543,1708164668378,-500.0,0.0005178,60]
[314301544,1708164668388,-500.0,0.0005178,60]
[314301545,1708164668398,-500.0,0.0005178,60]
[314301546,1708164668408,-500.0,0.0005178,60]
[314301547,1708164668418,-621.1,0.0005178,60]
[314301548,1708164668427,-524.6434262,0.0005178,60]
[314301549,1708164668437,-500.0,0.0005178,60]
[314301550,1708164668447,-500.0,0.0005178,60]
[314301551,1708164668456,-2210.94,0.0005178,60]
[314301552,1708164668466,-500.0,0.0005178,60]
[314301553,1708164668477,-500.0,0.0005178,60]
[314301554,1708164668487,-500.0,0.0005178,60]
[314301555,1708164668498,-500.0,0.0005178,60]
[314301556,1708164668507,-500.0,0.0005178,60]
[314301557,1708164668516,-822.01,0.0005178,14]
[314301558,1708164668525,-324.85641481,0.0005178,60]
[314301559,1708164668534,-1288.91,0.0005178,60]
[314301560,1708164668546,-4501.31,0.0005178,60]
[314301561,1708164668555,-500.0,0.0005178,60]
[314301562,1708164668564,-542.68,0.0005178,60]
[314301563,1708164668574,-500.0,0.0005178,60]
[314301564,1708164668584,-500.0,0.0005178,60]
[314301565,1708164668594,-500.0,0.0005178,60]
[314301566,1708164668603,-500.0,0.0005178,60]
[314301567,1708164668613,-568.10929905,0.0005178,60]
[314301568,1708164668622,-500.0,0.0005178,60]
[314301569,1708164668632,-303.54448397,0.0005178,60]
[314301570,1708164668642,-500.0,0.0005178,60]
[314301571,1708164668651,-615.51,0.0005178,60]
[314301572,1708164668661,-500.0,0.0005178,60]
[314301573,1708164668672,-500.0,0.0005178,60]
[314301574,1708164668683,-1497.63,0.0005178,60]
[314301575,1708164668693,-7291.56,0.0005178,60]
[314301576,1708164668702,-500.0,0.0005178,60]
[314301577,1708164668711,-500.0,0.0005178,60]
[314301578,1708164668722,-545.81557047,0.0005178,60]
[314301579,1708164668733,-500.0,0.0005178,60]
[314301580,1708164668744,-652.98,0.0005178,60]
[314301581,1708164668755,-500.0,0.0005178,60]
[314301582,1708164668766,-500.0,0.0005178,60]
[314301583,1708164668777,-500.0,0.0005178,60]
[314301584,1708164668787,-802.38,0.0005178,60]
[314301585,1708164668798,-1324.79,0.0005178,60]
[314301586,1708164668808,-791.76,0.0005178,60]
[314301587,1708164668818,-785.4,0.0005178,60]
[314301588,1708164668827,-500.0,0.0005178,60]
[314301589,1708164668837,-500.0,0.0005178,60]
[314301590,1708164668847,-500.0,0.0005178,60]
[314301591,1708164668856,-500.0,0.0005178,60]
[314301592,1708164668866,-500.0,0.0005178,60]
[314301593,1708164668878,-500.0,0.0005178,60]
[314301594,1708164668888,-500.0,0.0005178,60]
[314301595,1708164668898,-1013.43,0.0005178,60]
[314301596,1708164668907,-500.0,0.0005178,60]
[314301597,1708164668916,-17904.28,0.0005178,60]
[314301598,1708164669021,-500.0,0.0005178,60]
[314301599,1708164669030,-5229.57,0.0005178,60]
[314301600,1708164669040,-500.0,0.0005178,60]
[314301601,1708164669050,-500.0,0.0005178,60]
[314301602,1708164669059,-500.0,0.0005178,60]
[314301603,1708164669068,-500.0,0.0005178,60]
[314301604,1708164669077,-500.0,0.0005178,60]
[314301605,1708164669087,-500.0,0.0005178,60]
[314301606,1708164669096,-500.0,0.0005178,60]
[314301607,1708164669106,-713.58,0.0005178,60]
[314301608,1708164669115,-500.0,0.0005178,60]
[314301609,1708164669125,-500.0,0.0005178,60]
[314301610,1708164669134,-500.0,0.0005178,60]
[314301611,1708164669145,-380.25994813,0.0005178,60]
[314301612,1708164669155,-586.76,0.0005178,60]
[314301613,1708164669164,-537.63,0.0005178,60]
[314301614,1708164669174,-486.09409204,0.0005178,60]
[314301615,1708164669183,-500.0,0.0005178,60]
[314301616,1708164669193,-14201.01343229,0.00051784,21]
[314301617,1708164669201,-2166.73013342,0.000518,120]
[314301618,1708164669210,-370.0,0.00051814,30]
[314301619,1708164669219,-1163.77,0.00051828,2]
[314301620,1708164669228,-205.0,0.00051835,29]
[314301621,1708164669237,-203.98922904,0.00051882,11]
[314301622,1708164669247,-241.73047039,0.00051882,11]
[314301623,1708164669256,-25000.0,0.000519,120]
[314301624,1708164669266,-842.0,0.00051998,2]
[314301625,1708164669275,-216.0,0.00051998,120]
[314301626,1708164669283,-1949.0,0.00051998,120]
[314301627,1708164669293,-1255.0,0.00051998,120]
[314301628,1708164669302,-1231.0,0.00051998,120]
[314301629,1708164669313,-1005.0,0.00051998,120]
[314301630,1708164669321,-858.0,0.00051998,120]
[314301631,1708164669330,-276.0,0.00051998,120]
[314301632,1708164669340,-429.0,0.00051998,120]
[314301633,1708164669349,-1138.0,0.00051998,120]
[314301634,1708164669358,-321.0,0.00051998,120]
[314301635,1708164669368,-343.0,0.00051998,120]
[314301636,1708164669377,-2871.0,0.00051998,120]
[314301637,1708164669386,-160.749,0.00051998,120]
[314301638,1708164669395,-254.35532042,0.00052,30]
[314301639,1708164669406,-10650.97938242,0.00052,120]
[314301640,1708164669416,-25000.0,0.00052,10]
[314301641,1708164669427,-974.0,0.00052,120]
[314301642,1708164669437,-160.0,0.00052,120]
[314301643,1708164669447,-160.0,0.00052,120]
[314301644,1708164669457,-6000.0,0.00052,120]
[314301645,1708164669466,-300.0,0.00052,52]
[314301646,1708164669474,-10000.0,0.00052,90]
[314301647,1708164669484,-10000.0,0.00052,120]
[314301648,1708164669494,-10000.0,0.00052,25]
[314301649,1708164669503,-1042.9531812,0.00052,30]
[314301650,1708164669512,-12018.38343367,0.00052,120]
[314301651,1708164669521,-501.92,0.00052,7]
[314301652,1708164669530,-216.0,0.00052,120]
[314301653,1708164669539,-5000.0,0.00052,120]
[314301654,1708164669549,-8166.0,0.00052007,120]
[314301655,1708164669558,-7419.0,0.00052007,120]
[314301656,1708164669567,-2928.0,0.00052007,120]
[314301657,1708164669577,-285.4,0.00052007,120]
[314301658,1708164669586,-2290.0,0.00052007,120]
[314301659,1708164669597,-19853.0,0.00052007,120]
[314301660,1708164669607,-1037.0,0.00052007,120]
[314301661,1708164669618,-1000.0,0.00052011,30]
[314301662,1708164669628,-170.78,0.00052025,120]
[314301663,1708164669649,-150.5,0.00052035,120]
[314301664,1708164669659,-150.5,0.00052045,120]
[314301665,1708164669668,-169.08,0.00052045,120]
[314301666,1708164669678,-3568.121373,0.00052054,30]
[314301667,1708164669688,-500.0,0.00052054,2]
[314301668,1708164669700,-500.0,0.00052054,60]
[314301669,1708164669710,-500.0,0.00052054,2]
[314301670,1708164669721,-500.0,0.00052054,60]
[314301671,1708164669732,-500.0,0.00052054,60]
[314301672,1708164669743,-500.0,0.00052054,60]
[314301673,1708164669753,-24605.599197,0.00052054,30]
[314301674,1708164669764,-500.0,0.00052054,60]
[314301675,1708164669774,-500.0,0.00052054,2]
[314301676,1708164669784,-3373.152201,0.00052054,120]
[314301677,1708164669794,-500.0,0.00052054,60]
[314301678,1708164669803,-500.0,0.00052054,2]
[314301679,1708164669813,-500.0,0.00052054,60]
[314301680,1708164669823,-500.0,0.00052054,2]
[314301681,1708164669834,-711.3,0.00052054,2]
[314301682,1708164669843,-500.0,0.00052054,60]
[314301683,1708164669853,-500.0,0.00052054,60]
[314301684,1708164669864,-500.0,0.00052054,60]
[314301685,1708164669876,-500.0,0.00052054,60]
[314301686,1708164669886,-500.0,0.00052054,60]
[314301687,1708164669895,-184.94007307,0.00052054,60]
[314301688,1708164669905,-500.0,0.00052054,60]
[314301689,1708164669916,-500.0,0.00052054,60]
[314301690,1708164669926,-500.0,0.00052054,60]
[314301691,1708164669935,-500.0,0.00052054,60]
[314301692,1708164669947,-500.0,0.00052054,60]
[314301693,1708164669956,-500.0,0.00052054,7]
[314301694,1708164669966,-500.0,0.00052054,60]
[314301695,1708164669975,-500.0,0.00052054,60]
[314301696,1708164669984,-500.0,0.00052054,60]
[314301697,1708164669994,-784.42,0.00052054,60]
[314301698,1708164670004,-500.0,0.00052054,60]
[314301699,1708164670014,-962.96,0.00052054,60]
[314301700,1708164670024,-2128.31,0.00052054,60]
[314301701,1708164670033,-214.10032684,0.00052054,60]
[314301702,1708164670042,-191.24742863,0.00052054,60]
[314301703,1708164670052,-500.0,0.00052054,60]
[314301704,1708164670061,-500.0,0.00052054,60]
[314301705,1708164670071,-500.0,0.00052054,60]
[314301706,1708164670081,-3483.63,0.00052054,60]
[314301707,1708164670091,-500.0,0.00052054,60]
[314301708,1708164670100,-500.0,0.00052054,60]
[314301709,1708164670110,-500.0,0.00052054,60]
[314301710,1708164670120,-500.0,0.00052054,60]
[314301711,1708164670130,-621.1,0.00052054,60]
[314301712,1708164670139,-500.0,0.00052054,60]
[314301713,1708164670149,-500.0,0.00052054,60]
[314301714,1708164670159,-2210.94,0.00052054,60]
[314301715,1708164670168,-500.5456563,0.00052054,60]
[314301716,1708164670178,-500.0,0.00052054,60]
[314301717,1708164670189,-365.88100465,0.00052054,60]
[314301718,1708164670199,-500.0,0.00052054,60]
[314301719,1708164670209,-500.0,0.00052054,60]
[314301720,1708164670219,-822.01,0.00052054,14]
[314301721,1708164670228,-1288.91,0.00052054,60]
[314301722,1708164670237,-4501.31,0.00052054,60]
[314301723,1708164670248,-500.0,0.00052054,60]
[314301724,1708164670257,-542.68,0.00052054,60]
[314301725,1708164670266,-500.0,0.00052054,60]
[314301726,1708164670276,-500.0,0.00052054,60]
[314301727,1708164670285,-500.0,0.00052054,60]
[314301728,1708164670295,-500.0,0.00052054,60]
[314301729,1708164670305,-500.0,0.00052054,60]
[314301730,1708164670314,-500.0,0.00052054,60]
[314301731,1708164670324,-615.51,0.00052054,60]
[314301732,1708164670334,-500.0,0.00052054,60]
[314301733,1708164670343,-500.0,0.00052054,60]
[314301734,1708164670353,-1497.63,0.00052054,60]
[314301735,1708164670362,-7291.56,0.00052054,60]
[314301736,1708164670372,-500.0,0.00052054,60]
[314301737,1708164670381,-500.0,0.00052054,60]
[314301738,1708164670391,-500.0,0.00052054,60]
[314301739,1708164670402,-652.98,0.00052054,60]
[314301740,1708164670411,-500.0,0.00052054,60]
[314301741,1708164670421,-500.0,0.00052054,60]
[314301742,1708164670431,-500.0,0.00052054,60]
[314301743,1708164670441,-802.38,0.00052054,60]
[314301744,1708164670450,-1324.79,0.00052054,60]
[314301745,1708164670460,-791.76,0.00052054,60]
[314301746,1708164670471,-785.4,0.00052054,60]
[314301747,1708164670480,-500.0,0.00052054,60]
[314301748,1708164670490,-500.0,0.00052054,60]
[314301749,1708164670500,-500.0,0.00052054,60]
[314301750,1708164670510,-500.0,0.00052054,60]
[314301751,1708164670520,-500.0,0.00052054,60]
[314301752,1708164670529,-500.0,0.00052054,60]
[314301753,1708164670538,-500.0,0.00052054,60]
[314301754,1708164670546,-1013.43,0.00052054,60]
[314301755,1708164670555,-500.0,0.00052054,60]
[314301756,1708164670564,-17904.28,0.00052054,60]
[314301757,1708164670574,-500.0,0.00052054,60]
[314301758,1708164670582,-5229.57,0.00052054,60]
[314301759,1708164670592,-500.0,0.00052054,60]
[314301760,1708164670602,-500.0,0.00052054,60]
[314301761,1708164670613,-500.0,0.00052054,60]
[314301762,1708164670732,-500.0,0.00052054,60]
[314301763,1708164670741,-500.0,0.00052054,60]
[314301764,1708164670751,-500.0,0.00052054,60]
[314301765,1708164670762,-500.0,0.00052054,60]
[314301766,1708164670773,-713.58,0.00052054,60]
[314301767,1708164670782,-500.0,0.00052054,60]
[314301768,1708164670791,-500.0,0.00052054,60]
[314301769,1708164670802,-500.0,0.00052054,60]
[314301770,1708164670813,-586.76,0.00052054,60]
[314301771,1708164670822,-537.63,0.00052054,60]
[314301772,1708164670831,-647.809935,0.00052054,60]
[314301773,1708164670840,-20000.0,0.00052055,120]
[314301774,1708164670850,-197.38703632,0.00052087,2]
[314301775,1708164670859,-458.26282583,0.00052087,2]
[314301776,1708164670868,-6073.48509595,0.00052092,7]
[314301777,1708164670880,-1465.0173137,0.000521,2]
[314301778,1708164670890,-590.09961924,0.00052107,2]
[314301779,1708164670899,-188.0,0.00052107,120]
[314301780,1708164670909,-5038.94743403,0.00052112,7]
[314301781,1708164670918,-1315.00502205,0.00052121,4]
[314301782,1708164670928,-500.0,0.00052135,3]
[314301783,1708164670937,-223.021788,0.00052148,101]
[314301784,1708164670946,-200.0,0.00052176,30]
[314301785,1708164670957,-1000.0,0.00052246,45]
[314301786,1708164670967,-184.34705447,0.00052256,2]
[314301787,1708164670976,-461.30380708,0.00052277,2]
[314301788,1708164670985,-28028.82701657,0.00052298,120]
[314301789,1708164670995,-18211.22257101,0.00052328,2]
[314301790,1708164671004,-500.0,0.00052328,2]
[314301791,1708164671014,-319.69664117,0.00052328,60]
[314301792,1708164671023,-500.0,0.00052328,2]
[314301793,1708164671033,-500.0,0.00052328,60]
[314301794,1708164671042,-500.0,0.00052328,60]
[314301795,1708164671052,-500.0,0.00052328,60]
[314301796,1708164671061,-500.0,0.00052328,60]
[314301797,1708164671070,-500.0,0.00052328,2]
[314301798,1708164671080,-500.0,0.00052328,60]
[314301799,1708164671089,-500.0,0.00052328,2]
[314301800,1708164671098,-500.0,0.00052328,60]
[314301801,1708164671107,-213.90131513,0.00052328,2]
[314301802,1708164671117,-711.3,0.00052328,2]
[314301803,1708164671126,-500.0,0.00052328,60]
[314301804,1708164671136,-500.0,0.00052328,60]
[314301805,1708164671145,-500.0,0.00052328,60]
[314301806,1708164671155,-2320.6,0.00052328,7]
[314301807,1708164671164,-500.0,0.00052328,60]
[314301808,1708164671173,-500.0,0.00052328,60]
[314301809,1708164671183,-500.0,0.00052328,60]
[314301810,1708164671192,-556.21654927,0.00052328,60]
[314301811,1708164671201,-500.0,0.00052328,60]
[314301812,1708164671210,-500.0,0.00052328,60]
[314301813,1708164671219,-404.09287457,0.00052328,60]
[314301814,1708164671228,-537.94,0.00052328,60]
[314301815,1708164671237,-647.4073637,0.00052328,60]
[314301816,1708164671246,-500.0,0.00052328,60]
[314301817,1708164671255,-784.42,0.00052328,60]
[314301818,1708164671264,-500.0,0.00052328,60]
[314301819,1708164671273,-962.96,0.00052328,60]
[314301820,1708164671282,-2128.31,0.00052328,60]
[314301821,1708164671291,-500.0,0.00052328,60]
[314301822,1708164671301,-500.0,0.00052328,60]
[314301823,1708164671310,-3483.63,0.00052328,60]
[314301824,1708164671319,-500.0,0.00052328,60]
[314301825,1708164671327,-500.0,0.00052328,60]
[314301826,1708164671337,-500.0,0.00052328,60]
[314301827,1708164671346,-500.0,0.00052328,60]
[314301828,1708164671355,-621.1,0.00052328,60]
[314301829,1708164671364,-500.0,0.00052328,60]
[314301830,1708164671373,-2210.94,0.00052328,60]
[314301831,1708164671383,-500.0,0.00052328,60]
[314301832,1708164671392,-500.0,0.00052328,60]
[314301833,1708164671401,-822.01,0.00052328,14]
[314301834,1708164671410,-1288.91,0.00052328,60]
[314301835,1708164671420,-4501.31,0.00052328,60]
[314301836,1708164671429,-500.0,0.00052328,60]
[314301837,1708164671438,-542.68,0.00052328,60]
[314301838,1708164671448,-500.0,0.00052328,60]
[314301839,1708164671457,-500.0,0.00052328,60]
[314301840,1708164671466,-500.0,0.00052328,60]
[314301841,1708164671476,-500.0,0.00052328,60]
[314301842,1708164671486,-500.0,0.00052328,60]
[314301843,1708164671495,-615.51,0.00052328,60]
[314301844,1708164671504,-500.0,0.00052328,60]
[314301845,1708164671513,-500.0,0.00052328,60]
[314301846,1708164671522,-1497.63,0.00052328,60]
[314301847,1708164671532,-7291.56,0.00052328,60]
[314301848,1708164671541,-500.0,0.00052328,60]
[314301849,1708164671550,-500.0,0.00052328,60]
[314301850,1708164671559,-500.0,0.00052328,60]
[314301851,1708164671568,-652.98,0.00052328,60]
[314301852,1708164671577,-500.0,0.00052328,60]
[314301853,1708164671587,-500.0,0.00052328,60]
[314301854,1708164671596,-802.38,0.00052328,60]
[314301855,1708164671606,-1324.79,0.00052328,60]
[314301856,1708164671617,-791.76,0.00052328,60]
[314301857,1708164671627,-785.4,0.00052328,60]
[314301858,1708164671636,-500.0,0.00052328,60]
[314301859,1708164671645,-500.0,0.00052328,60]
[314301860,1708164671656,-500.0,0.00052328,60]
[314301861,1708164671666,-500.0,0.00052328,60]
[314301862,1708164671675,-500.0,0.00052328,60]
[314301863,1708164671686,-500.0,0.00052328,60]
[314301864,1708164671695,-1013.43,0.00052328,60]
[314301865,1708164671705,-500.0,0.00052328,60]
[314301866,1708164671714,-17904.28,0.00052328,60]
[314301867,1708164671724,-5229.57,0.00052328,60]
[314301868,1708164671733,-500.0,0.00052328,60]
[314301869,1708164671742,-500.0,0.00052328,60]
[314301870,1708164671751,-500.0,0.00052328,60]
[314301871,1708164671761,-500.0,0.00052328,60]
[314301872,1708164671770,-500.0,0.00052328,60]
[314301873,1708164671779,-500.0,0.00052328,60]
[314301874,1708164671790,-713.58,0.00052328,60]
[314301875,1708164671800,-500.0,0.00052328,60]
[314301876,1708164671809,-500.0,0.00052328,60]
[314301877,1708164671818,-4251828.47537859,0.00052328,31]
[314301878,1708164671828,-500.0,0.00052328,60]
[314301879,1708164671838,-586.76,0.00052328,60]
[314301880,1708164671847,-537.63,0.00052328,60]
[314301881,1708164671856,-151.0,0.00052335,2]
[314301882,1708164671865,-370.0,0.00052342,30]
[314301883,1708164671874,-25000.0,0.000524,120]
[314301884,1708164671886,-206.88,0.000524,30]
[314301885,1708164671895,-223.021788,0.00052448,101]
[314301886,1708164671905,-1234.75,0.0005245,2]
[314301887,1708164671914,-300.0,0.00052463,7]
[314301888,1708164671925,-3521.0,0.000525,30]
[314301889,1708164671934,-4995.5,0.000526,2]
[314301890,1708164671945,-518.64787854,0.00052602,2]
[314301891,1708164671955,-500.0,0.00052602,2]
[314301892,1708164671964,-500.0,0.00052602,60]
[314301893,1708164671973,-500.0,0.00052602,60]
[314301894,1708164671982,-500.0,0.00052602,2]
[314301895,1708164671992,-711.3,0.00052602,2]
[314301896,1708164672002,-222.0003593,0.00052602,60]
[314301897,1708164672011,-500.0,0.00052602,60]
[314301898,1708164672021,-500.0,0.00052602,60]
[314301899,1708164672030,-439.07189229,0.00052602,60]
[314301900,1708164672039,-500.0,0.00052602,60]
[314301901,1708164672049,-500.0,0.00052602,60]
[314301902,1708164672058,-214.75033922,0.00052602,60]
[314301903,1708164672067,-500.0,0.00052602,60]
[314301904,1708164672076,-784.42,0.00052602,60]
[314301905,1708164672086,-500.0,0.00052602,60]
[314301906,1708164672095,-962.96,0.00052602,60]
[314301907,1708164672105,-2128.31,0.00052602,60]
[314301908,1708164672114,-500.0,0.00052602,60]
[314301909,1708164672124,-3483.63,0.00052602,60]
[314301910,1708164672134,-500.0,0.00052602,60]
[314301911,1708164672143,-500.0,0.00052602,60]
[314301912,1708164672153,-500.0,0.00052602,60]
[314301913,1708164672249,-500.0,0.00052602,60]
[314301914,1708164672259,-621.1,0.00052602,60]
[314301915,1708164672269,-2210.94,0.00052602,60]
[314301916,1708164672278,-500.0,0.00052602,60]
[314301917,1708164672288,-822.01,0.00052602,14]
[314301918,1708164672298,-1288.91,0.00052602,60]
[314301919,1708164672307,-4501.31,0.00052602,60]
[314301920,1708164672317,-542.68,0.00052602,60]
[314301921,1708164672326,-500.0,0.00052602,60]
[314301922,1708164672336,-500.0,0.00052602,60]
[314301923,1708164672345,-500.0,0.00052602,60]
[314301924,1708164672354,-433.70221633,0.00052602,60]
[314301925,1708164672364,-500.0,0.00052602,60]
[314301926,1708164672372,-615.51,0.00052602,60]
[314301927,1708164672382,-500.0,0.00052602,60]
[314301928,1708164672391,-500.0,0.00052602,60]
[314301929,1708164672401,-1497.63,0.00052602,60]
[314301930,1708164672410,-7291.56,0.00052602,60]
[314301931,1708164672420,-500.0,0.00052602,60]
[314301932,1708164672430,-500.0,0.00052602,60]
[314301933,1708164672439,-652.98,0.00052602,60]
[314301934,1708164672451,-500.0,0.00052602,60]
[314301935,1708164672461,-802.38,0.00052602,60]
[314301936,1708164672471,-1324.79,0.00052602,60]
[314301937,1708164672480,-791.76,0.00052602,60]
[314301938,1708164672490,-785.4,0.00052602,60]
[314301939,1708164672500,-500.0,0.00052602,60]
[314301940,1708164672510,-500.0,0.00052602,60]
[314301941,1708164672520,-500.0,0.00052602,60]
[314301942,1708164672529,-500.0,0.00052602,60]
[314301943,1708164672540,-500.0,0.00052602,60]
[314301944,1708164672550,-500.0,0.00052602,60]
[314301945,1708164672560,-1013.43,0.00052602,60]
[314301946,1708164672571,-500.0,0.00052602,60]
[314301947,1708164672581,-17904.28,0.00052602,60]
[314301948,1708164672590,-5229.57,0.00052602,60]
[314301949,1708164672600,-500.0,0.00052602,60]
[314301950,1708164672610,-584.88114557,0.00052602,60]
[314301951,1708164672620,-500.0,0.00052602,60]
[314301952,1708164672629,-500.0,0.00052602,60]
[314301953,1708164672639,-713.58,0.00052602,60]
[314301954,1708164672648,-500.0,0.00052602,60]
[314301955,1708164672658,-500.0,0.00052602,60]
[314301956,1708164672667,-586.76,0.00052602,60]
[314301957,1708164672677,-537.63,0.00052602,60]
[314301958,1708164672688,-160.0,0.00052603,120]
[314301959,1708164672701,-205.0,0.00052652,32]
[314301960,1708164672711,-188.0,0.00052655,120]
[314301961,1708164672722,-1500.0,0.0005266,7]
[314301962,1708164672731,-300.0,0.00052733,7]
[314301963,1708164672741,-405.51,0.0005274,30]
[314301964,1708164672750,-317.73,0.0005274,30]
[314301965,1708164672759,-405.51,0.0005274,30]
[314301966,1708164672769,-405.51,0.0005274,30]
[314301967,1708164672778,-158.166395,0.00052797,30]
[314301968,1708164672788,-3264.09059697,0.000528,14]
[314301969,1708164672798,-160.0,0.00052822,120]
[314301970,1708164672807,-150.0,0.00052844,7]
[314301971,1708164672816,-150.0,0.0005285,7]
[314301972,1708164672826,-300.0,0.00052864,7]
[314301973,1708164672835,-370.0,0.00052871,30]
[314301974,1708164672844,-150.0,0.00052873,7]
[314301975,1708164672855,-500.0,0.00052876,2]
[314301976,1708164672867,-500.0,0.00052876,60]
[314301977,1708164672880,-500.0,0.00052876,60]
[314301978,1708164672890,-500.0,0.00052876,2]
[314301979,1708164672899,-711.3,0.00052876,2]
[314301980,1708164672910,-500.0,0.00052876,60]
[314301981,1708164672919,-500.0,0.00052876,60]
[314301982,1708164672929,-500.0,0.00052876,60]
[314301983,1708164672943,-500.0,0.00052876,60]
[314301984,1708164672953,-784.42,0.00052876,60]
[314301985,1708164672964,-441.86959631,0.00052876,60]
[314301986,1708164672974,-962.96,0.00052876,60]
[314301987,1708164672983,-2128.31,0.00052876,60]
[314301988,1708164672993,-500.0,0.00052876,60]
[314301989,1708164673003,-3483.63,0.00052876,60]
[314301990,1708164673013,-500.0,0.00052876,60]
[314301991,1708164673023,-500.0,0.00052876,60]
[314301992,1708164673033,-500.0,0.00052876,60]
[314301993,1708164673042,-500.0,0.00052876,60]
[314301994,1708164673052,-621.1,0.00052876,60]
[314301995,1708164673062,-2210.94,0.00052876,60]
[314301996,1708164673072,-500.0,0.00052876,60]
[314301997,1708164673082,-822.01,0.00052876,14]
[314301998,1708164673092,-1288.91,0.00052876,60]
[314301999,1708164673101,-4501.31,0.00052876,60]
[314302000,1708164673111,-542.68,0.00052876,60]
[314302001,1708164673120,-482.65197424,0.00052876,60]
[314302002,1708164673130,-500.0,0.00052876,60]
[314302003,1708164673140,-500.0,0.00052876,60]
[314302004,1708164673150,-500.0,0.00052876,60]
[314302005,1708164673160,-615.51,0.00052876,60]
[314302006,1708164673170,-326.53084127,0.00052876,60]
[314302007,1708164673180,-637.01834569,0.00052876,60]
[314302008,1708164673190,-1497.63,0.00052876,60]
[314302009,1708164673203,-7291.56,0.00052876,60]
[314302010,1708164673213,-500.0,0.00052876,60]
[314302011,1708164673223,-500.0,0.00052876,60]
[314302012,1708164673233,-652.98,0.00052876,60]
[314302013,1708164673244,-500.0,0.00052876,60]
[314302014,1708164673255,-802.38,0.00052876,60]
[314302015,1708164673265,-1324.79,0.00052876,60]
[314302016,1708164673276,-791.76,0.00052876,60]
[314302017,1708164673287,-785.4,0.00052876,60]
[314302018,1708164673297,-500.0,0.00052876,60]
[314302019,1708164673307,-500.0,0.00052876,60]
[314302020,1708164673318,-500.0,0.00052876,60]
[314302021,1708164673327,-500.0,0.00052876,60]
[314302022,1708164673336,-500.0,0.00052876,60]
[314302023,1708164673347,-1013.43,0.00052876,60]
[314302024,1708164673357,-428.15121461,0.00052876,60]
[314302025,1708164673366,-17904.28,0.00052876,60]
[314302026,1708164673376,-5229.57,0.00052876,60]
[314302027,1708164673385,-279.31154892,0.00052876,60]
[314302028,1708164673395,-500.0,0.00052876,60]
[314302029,1708164673405,-500.0,0.00052876,60]
[314302030,1708164673415,-713.58,0.00052876,60]
[314302031,1708164673425,-500.0,0.00052876,60]
[314302032,1708164673435,-500.0,0.00052876,60]
[314302033,1708164673447,-586.76,0.00052876,60]
[314302034,1708164673459,-537.63,0.00052876,60]